bitfinex/quotes_SOLUSD_20240813
["timestamp","ask_amount","ask_price","bid_price","bid_amount"]
[1723510845394,44.4337,147.23,147.17,5.4358]
[1723510845984,44.4337,147.23,147.18,5.4354]
[1723510846386,0.8366778,147.24,147.19,5.4349]
[1723510846878,0.8366778,147.24,147.17,13.5889]
[1723510847077,5.4341,147.22,147.17,19.0247]
[1723510847798,0.8366778,147.24,147.19,5.4351]
[1723510848005,0.8366778,147.24,147.17,13.5889]
[1723510848179,39.0,147.23,147.17,13.5889]
[1723510848381,5.4346,147.21,147.14,29.59299]
[1723510848600,5.4346,147.21,147.15,0.12549]
[1723510848791,5.4346,147.21,147.15,5.56199]
[1723510848993,5.4352,147.19,147.14,29.4675]
[1723510849177,39.0,147.23,147.14,29.4675]
[1723510849178,5.4347,147.21,147.14,29.4675]
[1723510849373,39.0,147.23,147.14,15.8752]
[1723510849603,44.4337,147.23,147.18,5.4354]
[1723510850082,39.0,147.23,147.16,13.5899]
[1723510850385,1.6985753,147.23,147.14,15.8752]
[1723510850575,5.4356,147.18,147.14,15.8752]
[1723510850777,5.4355,147.18,147.13,19.0305]
[1723510851503,5.4355,147.18,147.13,13.5932]
[1723510851718,5.4362,147.16,147.11,11.9515]
[1723510852002,39.0,147.14,147.06,6.328]
[1723510852202,5.4373,147.13,147.08,5.4388]
[1723510852500,39.0,147.14,147.08,13.5972]
[1723510852883,39.0,147.14,147.08,19.0363]
[1723510853087,39.0,147.14,147.08,13.5972]
[1723510853387,5.4381,147.11,147.06,11.7679]
[1723510853597,5.4375,147.13,147.07,13.5983]
[1723510853803,5.4375,147.13,147.08,5.4389]
[1723510853980,5.4379,147.12,147.07,13.5983]
[1723510854591,39.0,147.14,147.07,13.5983]
[1723510854832,44.4371,147.14,147.09,5.4385]
[1723510854997,39.0,147.14,147.07,13.5983]
[1723510855295,39.0,147.14,147.09,13.5964]
[1723510855497,5.4355,147.18,147.13,5.4373]
[1723510855700,39.0,147.21,147.13,13.5928]
[1723510855891,39.0,147.18,147.12,5.4373]
[1723510856079,39.0,147.18,147.13,5.4373]
[1723510857088,39.0,147.18,147.1,13.5959]
[1723510857316,39.0,147.18,147.13,5.437]
[1723510858184,39.0,147.18,147.14,5.4367]
[1723510858398,39.0,147.18,147.12,13.5936]
[1723510858399,44.4355,147.18,147.13,5.4373]
[1723510858591,5.4359,147.17,147.12,19.0312]
[1723510858801,5.4361,147.17,147.12,5.4374]
[1723510859384,39.0,147.15,147.03,27.2044]
[1723510859582,39.0,147.15,147.08,5.4391]
[1723510859820,20.0,147.18,147.03,27.2044]
[1723510859821,39.0,147.12,147.07,19.0377]
[1723510860018,39.0,147.12,147.07,13.5982]
[1723510860184,39.0,147.12,147.09,5.4388]
[1723510860614,39.0,147.15,147.11,5.4381]
[1723510862330,44.4367,147.15,147.11,5.4381]
[1723510862521,39.0,147.15,147.11,5.4381]
[1723510862687,39.0,147.15,147.11,19.0326]
[1723510862990,7.11021404,147.18,147.03,27.2044]
[1723510862991,5.4378,147.12,147.08,19.0368]
[1723510863191,5.4378,147.12,147.08,13.5977]
[1723510863520,5.4377,147.12,147.08,5.4392]
[1723510863721,5.4381,147.11,147.07,5.4395]
[1723510864023,39.0,147.13,147.08,13.5978]
[1723510864396,39.0,147.13,147.1,5.4381]
[1723510864603,39.0,147.13,147.09,5.4388]
[1723510865115,39.0,147.13,147.1,13.5956]
[1723510865320,7.11021404,147.18,147.15,13.5913]
[1723510865491,39.0,147.22,147.17,5.4358]
[1723510865694,5.4344,147.21,147.16,5.4362]
[1723510866315,39.0,147.22,147.17,5.4356]
[1723510866719,44.4343,147.22,147.17,5.4356]
[1723510867106,39.0,147.22,147.15,19.0275]
[1723510867733,5.4352,147.19,147.15,13.5913]
[1723510867901,5.4358,147.18,147.13,5.437]
[1723510868098,39.0,147.16,147.12,13.594]
[1723510868624,39.0,147.19,147.15,5.4366]
[1723510868800,5.4355,147.18,147.14,13.5916]
[1723510869005,5.4359,147.17,147.13,5.4373]
[1723510869200,5.4363,147.16,147.11,25.2231]
[1723510869534,39.0,147.19,147.11,19.7851]
[1723510869727,44.4354,147.19,147.13,13.5927]
[1723510869934,39.0,147.21,147.15,5.4362]
[1723510870227,39.0,147.21,147.16,5.4361]
[1723510870432,45.2699778,147.24,147.19,5.435]
[1723510870728,0.8366778,147.24,147.18,15.6728]
[1723510871024,0.8366778,147.24,147.22,5.4339]
[1723510871432,0.8366778,147.24,147.21,13.5855]
[1723510871433,0.8366778,147.24,147.23,5.4336]
[1723510871596,0.8366778,147.24,147.22,5.4339]
[1723510872403,0.8366778,147.24,147.21,19.0198]
[1723510872592,39.0,147.22,147.18,29.2611]
[1723510872821,39.0,147.22,147.18,15.6728]
[1723510873021,39.0,147.22,147.15,27.1828]
[1723510873225,39.0,147.19,147.13,27.3147]
[1723510873426,39.0,147.19,147.15,5.4362]
[1723510873637,44.4351,147.19,147.14,19.0291]
[1723510873843,39.0,147.19,147.14,13.5922]
[1723510874039,5.4362,147.16,147.12,5.4374]
[1723510874208,46.64,147.19,147.14,13.5924]
[1723510874410,46.64,147.19,147.16,5.4359]
[1723510874854,46.64,147.22,147.17,5.4358]
[1723510875045,46.64,147.22,147.18,5.4351]
[1723510875251,6.2700778,147.24,147.2,5.4345]
[1723510875538,0.8366778,147.24,147.18,13.5883]
[1723510875741,5.4342,147.22,147.18,13.5883]
[1723510876249,0.8366778,147.24,147.19,5.4349]
[1723510876250,6.2699778,147.24,147.19,5.4349]
[1723510876423,6.2699778,147.24,147.18,13.5883]
[1723510876424,0.8366778,147.24,147.18,13.5883]
[1723510876741,0.8366778,147.24,147.19,0.12549]
[1723510876949,0.8366778,147.24,147.2,5.4345]
[1723510877245,0.8366778,147.24,147.18,13.5883]
[1723510877449,5.4342,147.22,147.18,19.0237]
[1723510878215,5.4342,147.22,147.18,13.5883]
[1723510878631,5.4345,147.21,147.16,27.0372]
[1723510878840,5.4348,147.2,147.16,21.6013]
[1723510879343,5.4351,147.19,147.15,19.0276]
[1723510879711,46.64,147.22,147.18,13.5887]
[1723510880156,46.64,147.22,147.18,19.0241]
[1723510880744,46.64,147.22,147.18,13.5887]
[1723510881128,0.8366778,147.24,147.18,13.5887]
[1723510882021,6.2701778,147.24,147.19,5.56049]
[1723510882843,0.8366778,147.24,147.21,5.434]
[1723510883054,0.8366778,147.24,147.22,13.5847]
[1723510883360,0.8366778,147.24,147.22,19.0186]
[1723510883642,0.8366778,147.24,147.22,13.5847]
[1723510883847,0.8366778,147.24,147.22,19.0186]
[1723510884741,0.8366778,147.24,147.23,5.68458]
[1723510884916,0.8366778,147.24,147.23,5.81007]
[1723510885316,0.8366778,147.24,147.23,5.68458]
[1723510885538,0.8366778,147.24,147.23,5.55909]
[1723510885753,0.8366778,147.24,147.23,50.93556]
[1723510886053,0.8366778,147.24,147.23,78.10386]
[1723510886218,5.43,147.33,147.28,19.011]
[1723510886416,5.4303,147.32,147.28,13.5793]
[1723510886631,5.4308,147.31,147.26,5.4324]
[1723510887030,52.0704,147.32,147.28,5.4318]
[1723510887227,46.64,147.32,147.28,5.4318]
[1723510887546,46.64,147.32,147.29,5.4314]
[1723510887857,46.64,147.32,147.28,5.4317]
[1723510888350,46.64,147.32,147.29,5.4313]
[1723510888553,46.64,147.32,147.27,13.58]
[1723510888737,52.0703,147.32,147.27,13.58]
[1723510888942,52.0703,147.32,147.27,19.012]
[1723510889361,52.0703,147.32,147.25,5.4328]
[1723510889362,5.4313,147.3,147.25,5.4328]
[1723510889560,2.45886717,147.35,147.23,5.4334]
[1723510889561,5.4319,147.28,147.23,5.4334]
[1723510889858,5.4319,147.28,147.09,27.1932]
[1723510889859,46.64,147.29,147.25,5.4328]
[1723510890053,52.0716,147.29,147.25,5.4328]
[1723510890421,5.4319,147.28,147.24,19.0163]
[1723510890653,46.64,147.26,147.19,5.435]
[1723510890824,5.4335,147.24,147.19,5.435]
[1723510891019,5.4335,147.24,147.2,15.4512]
[1723510891248,5.4339,147.23,147.18,13.5885]
[1723510891443,5.4334,147.24,147.19,5.435]
[1723510891733,52.0737,147.23,147.18,19.0239]
[1723510891951,5.4341,147.22,147.18,19.0239]
[1723510892120,46.64,147.23,147.21,5.4343]
[1723510892325,55.63586915,147.28,147.16,22.2708]
[1723510892547,61.06786915,147.28,147.23,5.4336]
[1723510892737,5.4322,147.27,147.23,5.4336]
[1723510893056,5.4322,147.27,147.22,19.0185]
[1723510894331,5.4322,147.27,147.23,5.4335]
[1723510894528,52.0718,147.28,147.24,5.4332]
[1723510894726,46.64,147.28,147.22,13.5846]
[1723510894928,5.4324,147.27,147.22,19.0185]
[1723510895159,5.4325,147.26,147.22,19.0185]
[1723510895535,5.4323,147.27,147.22,19.0185]
[1723510895837,38.82,147.28,147.24,5.4332]
[1723510896030,38.82,147.28,147.25,5.4328]
[1723510896433,38.82,147.28,147.24,19.0159]
[1723510896962,38.82,147.28,147.22,5.4339]
[1723510897159,5.4323,147.27,147.22,5.4339]
[1723510897362,44.2518,147.28,147.24,5.4332]
[1723510897539,38.82,147.28,147.25,5.4328]
[1723510898939,38.82,147.28,147.26,5.4325]
[1723510899140,5.4312,147.3,147.26,5.4325]
[1723510899335,44.2508,147.31,147.26,5.4325]
[1723510899769,44.2508,147.31,147.27,5.432]
[1723510899987,38.82,147.31,147.25,13.5819]
[1723510900468,38.82,147.31,147.26,5.4324]
[1723510900768,5.4315,147.29,147.25,19.0147]
[1723510901066,5.4321,147.28,147.23,5.4336]
[1723510901243,40.5178914,147.29,147.22,19.0188]
[1723510901440,38.82,147.26,147.22,19.0188]
[1723510901866,38.82,147.29,147.24,13.5829]
[1723510902073,44.2517,147.29,147.25,5.4329]
[1723510902369,38.82,147.29,147.25,5.4329]
[1723510902758,44.2514,147.29,147.25,5.4329]
[1723510902951,5.4318,147.28,147.24,19.0161]
[1723510903845,38.82,147.29,147.2,13.5861]
[1723510904062,38.82,147.29,147.21,0.25098]
[1723510904275,5.4323,147.27,147.22,13.5847]
[1723510904462,38.82,147.29,147.23,0.12549]
[1723510904642,5.4322,147.27,147.23,5.4336]
[1723510905059,5.4322,147.27,147.22,19.0186]
[1723510905646,5.4319,147.28,147.23,5.4336]
[1723510905845,5.4322,147.27,147.23,5.4336]
[1723510906063,5.4325,147.26,147.22,19.0186]
[1723510906338,2.54312008,147.3,147.17,27.1793]
[1723510906339,5.4313,147.3,147.26,5.4325]
[1723510906562,44.2508,147.31,147.26,5.4325]
[1723510907151,5.4311,147.3,147.26,5.4325]
[1723510907549,38.82,147.31,147.25,13.5822]
[1723510908358,5.4317,147.29,147.25,5.4328]
[1723510908541,84.1902,147.28,147.16,22.2708]
[1723510908871,84.1902,147.28,147.16,34.7716]
[1723510908872,38.82,147.24,147.16,34.7716]
[1723510909062,15.1201,147.26,147.14,5.4369]
[1723510909063,5.4354,147.19,147.14,5.4369]
[1723510909373,5.4348,147.2,147.15,5.4365]
[1723510909577,38.82,147.21,147.16,5.4359]
[1723510909739,38.82,147.21,147.15,13.5909]
[1723510909946,44.2544,147.21,147.15,13.5909]
[1723510910141,38.82,147.21,147.15,13.5909]
[1723510910346,5.4344,147.21,147.17,5.4358]
[1723510910649,38.82,147.21,147.15,13.5909]
[1723510910951,38.82,147.18,147.08,21.6573]
[1723510911197,5.4374,147.13,147.09,13.5967]
[1723510911397,7.13636319,147.14,147.09,19.0355]
[1723510911573,38.82,147.15,147.09,13.5967]
[1723510911895,38.82,147.15,147.09,19.0355]
[1723510912271,5.4373,147.13,147.08,5.4391]
[1723510912475,5.4377,147.12,147.07,5.4395]
[1723510912704,7.13727557,147.12,147.07,5.4395]
[1723510913002,38.82,147.15,147.09,13.5967]
[1723510913372,44.2566,147.15,147.09,13.5967]
[1723510913670,38.82,147.13,147.06,13.5995]
[1723510913879,38.82,147.11,147.04,6.4748]
[1723510914070,38.82,147.11,147.05,5.44]
[1723510914071,5.4388,147.09,147.05,5.44]
[1723510914271,44.2581,147.11,147.06,5.4398]
[1723510914500,44.2581,147.11,147.04,6.4748]
[1723510914501,38.82,147.14,147.04,6.4748]
[1723510914698,5.4374,147.13,147.07,13.5983]
[1723510914872,38.82,147.14,147.07,19.0376]
[1723510915073,5.4378,147.12,147.07,19.0376]
[1723510915380,44.2573,147.14,147.07,13.5983]
[1723510915704,44.2573,147.14,147.09,5.4388]
[1723510915880,44.2573,147.14,147.07,13.5983]
[1723510915881,5.438,147.12,147.07,19.0375]
[1723510916213,52.413,147.14,147.04,13.6016]
[1723510916375,52.413,147.14,147.0,6.1066]
[1723510916376,38.82,147.1,147.01,13.6043]
[1723510916697,5.4398,147.07,147.02,5.4411]
[1723510917071,1.70019527,147.06,147.02,5.4411]
[1723510917305,5.4398,147.07,147.02,5.4411]
[1723510917485,5.4392,147.08,147.03,5.4409]
[1723510918203,7.13977821,147.07,147.02,5.4414]
[1723510918389,5.4396,147.07,147.02,5.4414]
[1723510918906,5.4406,147.05,147.01,13.6043]
[1723510919073,5.441,147.03,146.98,13.6068]
[1723510919279,5.441,147.03,146.98,19.0494]
[1723510919597,5.4415,147.02,146.98,13.6068]
[1723510920114,1.70080535,147.01,146.98,13.6068]
[1723510920601,15.5664,147.07,146.94,15.016]
[1723510920788,6.2208,147.08,146.96,27.2177]
[1723510920990,5.4396,147.07,147.02,5.4413]
[1723510921304,5.4398,147.07,147.02,5.4413]
[1723510921513,38.82,147.08,146.96,27.2177]
[1723510921682,38.82,147.08,146.98,0.12549]
[1723510921881,38.82,147.08,147.03,13.602]
[1723510922279,44.2592,147.08,147.03,13.602]
[1723510922582,5.4385,147.1,147.06,5.4399]
[1723510922768,6.2208,147.12,147.02,16.4494]
[1723510922769,5.4388,147.09,147.02,16.4494]
[1723510922973,7.92091561,147.12,147.02,30.0528]
[1723510923201,5.4395,147.08,147.03,5.4408]
[1723510923405,38.82,147.07,146.99,13.6062]
[1723510923576,38.82,147.07,146.98,16.4494]
[1723510923577,5.4414,147.02,146.98,16.4494]
[1723510923776,38.82,147.05,146.97,6.5183]
[1723510924105,5.4402,147.06,147.01,5.4417]
[1723510924402,5.4404,147.05,147.0,13.6048]
[1723510924715,5.4404,147.05,146.94,16.4494]
[1723510924716,5.4418,147.02,146.96,13.6085]
[1723510925002,5.4411,147.03,146.98,5.4427]
[1723510925173,5.4411,147.03,146.94,22.9677]
[1723510925174,44.2603,147.05,147.0,5.4418]
[1723510925371,38.82,147.05,147.0,5.4418]
[1723510925587,5.4407,147.04,146.99,19.0482]
[1723510925804,5.4403,147.05,146.99,13.6058]
[1723510925999,38.82,147.07,147.01,13.6039]
[1723510926177,5.4404,147.05,147.01,13.6039]
[1723510926809,5.4415,147.02,146.98,19.0496]
[1723510926991,52.4196,147.07,146.98,13.6069]
[1723510927302,5.4404,147.05,147.0,5.4418]
[1723510927507,38.82,147.07,146.98,13.6069]
[1723510927718,5.4414,147.02,146.98,13.6069]
[1723510927920,5.4418,147.01,146.97,5.4432]
[1723510928222,5.4414,147.02,146.97,5.4432]
[1723510929498,5.4417,147.02,146.98,13.607]
[1723510929698,5.4417,147.02,146.98,19.0498]
[1723510929931,5.4411,147.03,146.99,5.4424]
[1723510930113,1.70069913,147.02,146.95,13.6098]
[1723510930312,5.442,147.01,146.96,5.4435]
[1723510930491,38.82,147.01,146.94,28.4117]
[1723510930696,5.4429,146.98,146.94,28.4117]
[1723510930892,5.4426,146.99,146.94,28.4117]
[1723510931295,1.7011883,146.98,146.94,28.4117]
[1723510931609,38.82,147.04,146.94,22.9677]
[1723510931792,38.82,147.04,146.99,19.0487]
[1723510931992,5.4413,147.03,146.98,5.4428]
[1723510932192,38.82,147.04,146.96,13.6091]
[1723510932392,13.63552616,147.08,146.98,13.6067]
[1723510932393,38.82,147.07,146.98,13.6067]
[1723510932592,19.07502616,147.08,146.95,0.12549]
[1723510932891,5.4404,147.05,147.0,5.4418]
[1723510933109,52.4166,147.1,146.97,0.12549]
[1723510933110,12.55293732,147.1,147.05,5.44]
[1723510933405,65.56412657,147.14,147.06,0.12549]
[1723510933406,5.437,147.14,147.06,0.12549]
[1723510933583,5.437,147.14,147.04,0.12549]
[1723510933788,5.437,147.14,147.1,5.4384]
[1723510934011,20.0,147.15,147.04,13.72689]
[1723510934191,5.4393,147.08,147.04,13.6014]
[1723510934523,5.4385,147.1,147.05,5.4402]
[1723510934886,5.4385,147.1,147.06,5.4399]
[1723510935307,5.4377,147.12,147.06,13.5993]
[1723510935512,5.4374,147.13,147.08,5.4391]
[1723510935717,38.82,147.14,147.06,13.5993]
[1723510936019,38.82,147.14,147.06,19.0392]
[1723510936020,5.4383,147.11,147.06,19.0392]
[1723510936320,38.82,147.14,147.06,13.5993]
[1723510936692,5.4383,147.11,147.06,19.039]
[1723510938103,5.4378,147.12,147.07,5.4395]
[1723510938288,5.4381,147.11,147.07,5.4395]
[1723510938786,5.4381,147.11,147.06,19.0391]
[1723510939122,38.82,147.14,147.06,13.5993]
[1723510939309,5.4378,147.12,147.07,5.56489]
[1723510939645,40.51956854,147.11,147.03,15.8048]
[1723510939790,52.4177,147.09,146.99,16.5593]
[1723510939985,38.82,147.09,146.99,16.5593]
[1723510940189,38.82,147.09,146.99,30.1651]
[1723510940190,5.4403,147.05,146.99,30.1651]
[1723510940423,5.4392,147.08,147.01,13.6038]
[1723510940591,38.82,147.11,146.99,16.5593]
[1723510940784,38.82,147.11,147.03,13.6021]
[1723510941095,58.82,147.14,146.99,55.3793]
[1723510941299,5.4392,147.08,147.03,5.4407]
[1723510941513,0.25098,147.13,147.04,5.4406]
[1723510941514,5.4389,147.09,147.04,5.4406]
[1723510941905,13.5947,147.12,147.02,13.603]
[1723510942108,5.4392,147.08,147.03,5.56649]
[1723510942834,5.4402,147.06,147.02,13.603]
[1723510943112,5.4402,147.06,147.0,45.0]
[1723510943113,38.82,147.09,146.99,16.5593]
[1723510943323,5.4411,147.03,146.99,16.5593]
[1723510943697,52.4205,147.06,146.98,6.3905]
[1723510943891,1.70061738,147.05,146.95,29.9884]
[1723510944111,5.4404,147.05,147.0,5.4421]
[1723510944517,6.54709,147.08,146.95,16.3789]
[1723510944827,5.4396,147.07,147.02,5.4411]
[1723510945117,5.4407,147.04,147.01,13.604]
[1723510945418,5.4404,147.05,147.01,13.604]
[1723510945805,44.2589,147.09,147.03,13.6021]
[1723510945994,5.4385,147.1,147.02,6.87868]
[1723510946192,20.0152,147.13,147.02,6.87868]
[1723510946193,5.4389,147.09,147.05,13.6004]
[1723510946523,5.438,147.12,147.07,5.4394]
[1723510946895,5.4381,147.11,147.07,5.4394]
[1723510947112,38.82,147.15,147.07,13.5985]
[1723510947310,38.82,147.15,147.08,0.12549]
[1723510947491,5.4384,147.1,147.06,5.4399]
[1723510947694,38.82,147.15,147.06,5.4399]
[1723510947893,5.4382,147.11,147.06,5.4399]
[1723510948319,13.5931,147.14,147.05,5.4402]
[1723510948517,38.82,147.12,147.02,6.6277]
[1723510948744,5.4396,147.07,147.03,0.12549]
[1723510949035,5.4396,147.07,147.02,12.069]
[1723510949399,38.82,147.09,147.01,16.3789]
[1723510949721,5.4423,147.0,146.97,16.3833]
[1723510950140,13.6008,147.05,146.97,16.3833]
[1723510950430,5.4407,147.04,146.99,5.4425]
[1723510951406,5.4417,147.02,146.98,13.6072]
[1723510951914,5.4403,147.05,147.0,5.4421]
[1723510952100,58.72369,147.08,147.0,5.4418]
[1723510952101,5.4407,147.04,147.0,5.4418]
[1723510952600,5.4411,147.03,146.98,13.6072]
[1723510952797,5.4408,147.04,146.99,5.4424]
[1723510953127,45.12549,147.08,147.01,13.6044]
[1723510953330,5.4401,147.06,147.01,19.0459]
[1723510953620,7.94291495,147.09,147.04,5.4404]
[1723510953934,38.82,147.12,147.04,5.4404]
[1723510954097,41.38417019,147.12,147.04,5.4404]
[1723510954300,5.4392,147.08,147.03,19.043]
[1723510954813,5.4389,147.09,147.03,13.6021]
[1723510954998,41.38417019,147.12,147.03,13.6021]
[1723510954999,5.4385,147.1,147.05,5.4401]
[1723510955205,5.4374,147.13,147.08,5.4389]
[1723510955529,5.4378,147.12,147.08,5.4389]
[1723510956106,5.4374,147.13,147.08,5.4389]
[1723510956308,5.4378,147.12,147.08,5.4391]
[1723510956798,5.4383,147.11,147.07,13.5984]
[1723510956999,5.4392,147.08,147.06,15.4264]
[1723510957309,13.593,147.14,147.02,22.0711]
[1723510957310,5.4391,147.09,147.02,22.0711]
[1723510957521,38.82,147.12,147.05,5.4401]
[1723510958015,38.82,147.12,147.04,5.4406]
[1723510958230,38.82,147.12,147.03,13.6024]
[1723510958427,38.82,147.12,147.05,13.6002]
[1723510958636,38.82,147.15,147.06,5.56539]
[1723510958932,38.82,147.12,147.02,35.6743]
[1723510959111,5.44,147.06,147.02,35.6743]
[1723510959307,5.4404,147.05,147.0,5.4421]
[1723510959629,5.4394,147.08,147.03,5.4409]
[1723510959807,5.4405,147.05,147.0,5.442]
[1723510960020,5.4406,147.04,146.99,19.0485]
[1723510960221,5.4414,147.02,146.99,13.6061]
[1723510960426,13.5995,147.07,146.98,22.0711]
[1723510960427,5.442,147.01,146.98,22.0711]
[1723510960619,5.4413,147.03,146.99,5.4425]
[1723510960916,5.44,147.06,147.01,5.4415]
[1723510961115,5.4411,147.03,146.98,22.0711]
[1723510961322,47.55722132,147.09,146.98,22.0711]
[1723510961323,2.49462132,147.09,146.98,22.0711]
[1723510961504,12.26235965,147.14,147.04,6.0125]
[1723510961709,6.5108,147.16,147.05,20.25098]
[1723510961934,18.76816694,147.16,147.05,0.25098]
[1723510962433,6.5108,147.16,147.06,0.25098]
[1723510962635,6.5108,147.16,147.07,0.25098]
[1723510962842,6.5108,147.16,147.07,13.5981]
[1723510963010,5.4392,147.08,147.04,19.6141]
[1723510963522,5.4389,147.09,147.04,25.0547]
[1723510963716,38.82,147.14,147.04,19.6141]
[1723510964022,5.4388,147.09,147.05,5.4401]
[1723510964228,1.699931,147.12,147.04,19.6141]
[1723510964541,5.4392,147.08,147.04,19.6141]
[1723510964712,5.4388,147.09,147.04,25.0547]
[1723510964914,5.4385,147.1,147.05,5.4402]
[1723510965632,0.12549,147.1,147.01,13.6041]
[1723510966019,52.4158,147.11,147.01,13.6041]
[1723510966415,0.12549,147.1,147.01,13.6041]
[1723510966722,5.4413,147.03,146.99,5.4425]
[1723510967039,5.4403,147.05,147.0,5.4418]
[1723510968718,5.4407,147.04,146.99,5.4424]
[1723510969218,5.4411,147.03,146.98,34.4762]
[1723510969429,5.4404,147.05,147.0,5.4418]
[1723510969617,72.56947,147.1,147.02,5.4413]
[1723510969618,45.37647,147.1,147.02,5.4413]
[1723510969832,20.12549,147.09,147.0,19.0469]
[1723510970037,39.19647,147.08,146.98,15.4264]
[1723510970223,38.82,147.05,146.97,19.051]
[1723510970536,5.4411,147.03,146.98,5.4429]
[1723510970719,38.82,147.05,146.99,5.4424]
[1723510971135,38.82,147.08,146.99,13.6059]
[1723510971441,1.70032432,147.09,147.01,19.0457]
[1723510971640,5.4401,147.06,147.01,13.604]
[1723510971813,5.4401,147.06,147.02,5.4413]
[1723510972924,5.4401,147.06,147.01,19.0457]
[1723510973244,5.4408,147.04,146.99,5.4423]
[1723510973544,45.12549,147.09,147.0,0.12549]
[1723510973718,5.4404,147.05,147.0,13.6049]
[1723510974041,5.44,147.06,147.0,13.6049]
[1723510974729,0.12549,147.08,147.0,13.6049]
[1723510974730,5.4403,147.05,147.01,5.4417]
[1723510975143,5.4403,147.05,147.0,13.6049]
[1723510975144,5.4407,147.04,147.0,19.0469]
[1723510975445,5.4409,147.04,147.0,13.6049]
[1723510976642,5.4403,147.05,147.0,19.0469]
[1723510976950,5.4411,147.03,147.0,13.6049]
[1723510977311,52.54379,147.08,147.0,13.6049]
[1723510977518,5.4406,147.05,147.0,19.047]
[1723510977936,5.4407,147.04,147.0,19.047]
[1723510978447,52.54379,147.08,147.01,5.4414]
[1723510978618,5.4402,147.06,147.01,5.4414]
[1723510980042,5.4397,147.07,147.02,13.6032]
[1723510980228,21.82567284,147.1,146.99,0.12549]
[1723510980422,21.82567284,147.1,146.96,33.5608]
[1723510980423,5.4408,147.04,146.98,13.73209]
[1723510980734,64.68145889,147.08,146.99,0.12549]
[1723510980924,45.12549,147.07,146.99,0.12549]
[1723510981123,45.12549,147.07,146.98,13.73209]
[1723510981349,45.12549,147.07,146.99,5.4424]
[1723510981552,5.4407,147.04,146.99,5.4424]
[1723510981733,20.12549,147.05,146.96,6.3437]
[1723510982056,20.12549,147.05,146.96,11.787]
[1723510982057,5.4422,147.0,146.96,11.787]
[1723510982353,5.4421,147.0,146.96,11.7873]
[1723510982652,5.444,146.95,146.92,6.1229]
[1723510982848,5.4437,146.96,146.91,19.0585]
[1723510983727,5.4437,146.96,146.92,5.4451]
[1723510984327,5.4447,146.93,146.89,5.4462]
[1723510984637,5.4444,146.94,146.89,5.4462]
[1723510985026,5.4452,146.92,146.88,6.1229]
[1723510985217,35.3332,146.99,146.9,13.6146]
[1723510985422,45.37647,146.98,146.9,19.0604]
[1723510985616,5.4451,146.92,146.88,6.1229]
[1723510985817,5.4459,146.9,146.87,0.8366778]
[1723510986048,38.82,146.94,146.87,0.8366778]
[1723510986225,5.4451,146.92,146.87,6.2835778]
[1723510986637,5.4455,146.91,146.87,6.2835778]
[1723510986834,5.4455,146.91,146.87,0.8366778]
[1723510987057,5.4451,146.92,146.87,6.2834778]
[1723510987351,5.4455,146.91,146.87,0.8366778]
[1723510987652,5.4455,146.91,146.87,6.2835778]
[1723510987836,0.12549,146.93,146.87,0.8366778]
[1723510988040,5.4452,146.92,146.87,6.2835778]
[1723510988624,5.4455,146.91,146.87,6.2835778]